bitfinex/quotes_ETHUSD_20241023
["timestamp","ask_amount","ask_price","bid_price","bid_amount"]
[1729668259144,3.44361,2613.6,2613.0,4.482619]
[1729668259342,3.44369,2613.5,2613.1,0.07652943]
[1729668259778,6.88725,2613.6,2613.1,0.07652943]
[1729668259992,3.44361,2613.6,2613.1,3.52070943]
[1729668260282,0.7851,2613.7,2613.3,3.9386]
[1729668260488,3.44329,2613.8,2613.3,0.4948]
[1729668260682,3.44329,2613.8,2613.3,3.93862]
[1729668261386,3.44329,2613.8,2613.3,0.4948]
[1729668261545,3.44341,2613.7,2613.3,0.4948]
[1729668261884,3.44326,2613.8,2613.3,3.9387]
[1729668262079,3.44326,2613.8,2613.4,0.39387]
[1729668262379,3.44342,2613.7,2613.4,0.39387]
[1729668263090,4.21625,2613.9,2613.4,0.39387]
[1729668263766,3.44333,2613.8,2613.4,0.39387]
[1729668264092,3.44346,2613.7,2613.4,0.39387]
[1729668264443,3.44346,2613.7,2613.5,0.433258]
[1729668266357,3.44346,2613.7,2613.3,0.4948]
[1729668266571,3.44363,2613.6,2613.3,0.4948]
[1729668268989,3.44346,2613.7,2613.3,0.4948]
[1729668269309,3.44346,2613.7,2613.3,3.93871]
[1729668269664,3.44303,2614.0,2613.5,3.44354]
[1729668269859,3.44303,2614.0,2613.6,0.40148639]
[1729668270054,0.8329,2614.3,2613.7,3.51990559]
[1729668270294,4.27554,2614.3,2613.8,3.93799]
[1729668270595,0.0022408,2614.4,2613.9,3.51962536]
[1729668271274,3.4447308,2614.4,2613.9,3.44312]
[1729668271478,3.4447308,2614.4,2614.0,0.393792]
[1729668271879,0.0022408,2614.4,2614.0,0.47029298]
[1729668272068,0.0022408,2614.4,2614.0,3.91323298]
[1729668272267,0.0022408,2614.4,2614.0,3.836732]
[1729668272579,0.0022408,2614.4,2614.0,0.393792]
[1729668272762,0.0022408,2614.4,2614.1,3.8265232]
[1729668273808,0.0022408,2614.4,2614.1,0.3836832]
[1729668274652,3.4447208,2614.4,2614.1,0.3836832]
[1729668275050,3.4447208,2614.4,2613.9,6.44304]
[1729668275051,0.7951,2614.3,2613.9,6.44304]
[1729668275280,4.2377,2614.3,2613.9,3.0]
[1729668275670,0.7951,2614.3,2613.9,3.0]
[1729668275902,3.44311,2614.0,2613.6,0.89628639]
[1729668276203,3.44319,2613.9,2613.6,0.40148639]
[1729668276841,4.23949,2613.9,2613.6,0.40148639]
[1729668276939,7.6827,2613.9,2613.6,0.40148639]
[1729668277060,4.23949,2613.9,2613.2,3.93876]
[1729668277402,4.23949,2613.9,2613.3,2.76]
[1729668277403,3.44337,2613.8,2613.3,2.76]
[1729668277522,3.44337,2613.8,2613.3,6.20391]
[1729668278236,3.44337,2613.8,2613.3,3.44391]
[1729668278498,3.44341,2613.7,2613.3,0.738288]
[1729668278701,3.44341,2613.7,2613.3,3.738288]
[1729668279353,3.44327,2613.8,2613.3,4.2586202]
[1729668279582,4.2395,2613.9,2613.4,3.44377]
[1729668279997,0.7963,2613.9,2613.5,3.44359]
[1729668280199,0.7963,2613.9,2613.6,0.743737]
[1729668281757,4.23945,2613.9,2613.6,0.743737]
[1729668282856,4.23945,2613.9,2613.3,4.182188]
[1729668282857,3.44334,2613.8,2613.3,4.182188]
[1729668283058,3.44334,2613.8,2613.3,4.182098]
[1729668283264,0.7963,2613.9,2613.4,3.52026875]
[1729668283773,4.23949,2613.9,2613.4,3.52026875]
[1729668284011,4.23949,2613.9,2613.4,4.2992492]
[1729668284169,4.23949,2613.9,2613.4,4.37576797]
[1729668284630,0.7963,2613.9,2613.4,0.8554992]
[1729668284714,3.44327,2613.8,2613.4,0.8554992]
[1729668284998,4.23943,2613.9,2613.4,4.2992592]
[1729668285209,4.23943,2613.9,2613.5,0.58391825]
[1729668287044,3.44313,2613.9,2613.6,0.4948]
[1729668287200,3.44313,2613.9,2613.5,0.58391825]
[1729668287402,6.8862,2614.0,2613.5,4.02753825]
[1729668287607,6.88619,2614.0,2613.5,4.02753825]
[1729668288326,6.8862,2614.0,2613.5,4.02753825]
[1729668288843,3.44309,2614.0,2613.5,4.10405708]
[1729668289012,3.44309,2614.0,2613.5,0.66043708]
[1729668289142,3.44309,2614.0,2613.5,0.58391825]
[1729668289348,3.44307,2614.0,2613.6,0.64215518]
[1729668289573,3.44307,2614.0,2613.6,4.08567518]
[1729668290226,3.44307,2614.0,2613.6,0.64215518]
[1729668290655,6.88618,2614.0,2613.6,0.64215518]
[1729668290866,3.44307,2614.0,2613.6,0.64215518]
[1729668293707,3.44313,2613.9,2613.6,0.64215518]
[1729668295877,3.44307,2614.0,2613.6,0.64215518]
[1729668296088,6.88619,2614.0,2613.6,0.64215518]
[1729668296407,3.44316,2613.9,2613.6,0.64215518]
[1729668296495,3.44307,2614.0,2613.6,0.64215518]
[1729668299681,3.44317,2613.9,2613.6,0.64215518]
[1729668300661,5.1307658,2614.0,2613.6,0.64215518]
[1729668302129,3.44283,2614.2,2613.7,0.40857452]
[1729668302326,2.91778846,2614.3,2613.8,0.4948]
[1729668302327,1.23009266,2614.3,2613.8,0.4948]
[1729668302636,7.28498266,2614.3,2613.8,0.57131516]
[1729668303011,7.28498266,2614.3,2613.8,4.01450516]
[1729668303012,5.52997846,2614.3,2613.8,4.01450516]
[1729668303017,5.52997846,2614.3,2613.9,0.44230797]
[1729668303386,3.84228266,2614.3,2613.9,0.44230797]
[1729668303797,5.52997846,2614.3,2613.9,0.44230797]
[1729668304613,0.39959266,2614.3,2613.9,3.88530797]
[1729668304817,0.39959266,2614.3,2614.0,0.78998131]
[1729668305015,0.39959266,2614.3,2614.0,4.23297131]
[1729668305310,0.39959266,2614.3,2614.1,0.4948]
[1729668305541,0.39959266,2614.3,2614.1,0.57130034]
[1729668308304,0.39959266,2614.3,2614.2,5.1304258]
[1729668308526,0.0022408,2614.4,2614.2,6.20037625]
[1729668309042,0.0022408,2614.4,2614.2,6.12388055]
[1729668309249,0.0022408,2614.4,2614.2,6.20037538]
[1729668309741,0.0022408,2614.4,2614.2,4.51267958]
[1729668309942,0.0022408,2614.4,2614.2,6.20037538]
[1729668310148,0.0022408,2614.4,2614.3,1.01380154]
[1729668311236,0.0022408,2614.4,2614.2,3.44273]
[1729668311851,0.0022408,2614.4,2614.1,0.4948]
[1729668312251,0.0022408,2614.4,2614.2,3.44266]
[1729668312547,0.0022408,2614.4,2614.1,3.93753]
[1729668312755,4.24176,2614.3,2614.0,0.78998131]
[1729668312911,3.44281,2614.2,2613.7,4.24491526]
[1729668313122,4.2417,2614.3,2613.8,0.07650778]
[1729668313323,4.2417,2614.3,2613.9,3.44312]
[1729668314054,4.2417,2614.3,2613.8,3.51974778]
[1729668314215,4.2417,2614.3,2613.8,4.38943159]
[1729668314216,3.44275,2614.2,2613.8,4.38943159]
[1729668314820,3.44275,2614.2,2613.8,0.94619159]
[1729668315074,4.24053,2613.9,2613.6,0.80163526]
[1729668315221,3.44339,2613.7,2613.3,1.29643526]
[1729668315558,4.24053,2613.9,2613.5,3.44353]
[1729668315559,0.7973,2613.9,2613.5,3.44353]
[1729668315760,0.7973,2613.9,2613.5,4.03777181]
[1729668315945,0.7973,2613.9,2613.5,4.11428752]
[1729668316254,0.7973,2613.9,2613.6,3.4435]
[1729668317534,0.7631,2614.2,2613.6,3.44346]
[1729668317830,3.44263,2614.3,2613.8,3.44319]
[1729668318254,3.44263,2614.3,2613.8,4.26149453]
[1729668319235,6.88536,2614.3,2613.8,3.44319]
[1729668319554,3.44294,2614.1,2613.7,0.4948]
[1729668319785,4.27154,2614.1,2613.6,3.44342]
[1729668319933,0.8286,2614.1,2613.7,3.97678971]
[1729668320132,4.27151,2614.1,2613.7,0.53340971]
[1729668320326,3.44308,2614.0,2613.5,1.89067707]
[1729668320567,3.44308,2614.0,2613.5,5.33431707]
[1729668320874,3.44308,2614.0,2613.5,5.41077159]
[1729668321065,3.44308,2614.0,2613.5,5.33425707]
[1729668321272,3.44314,2613.9,2613.5,5.33425707]
[1729668321678,3.44313,2613.9,2613.5,0.59424181]
[1729668321997,0.8286,2614.1,2613.4,4.24541526]
[1729668321998,3.44336,2613.8,2613.4,3.87815469]
[1729668322177,3.44336,2613.8,2613.3,1.69725289]
[1729668322178,4.25219,2613.6,2613.3,0.80163526]
[1729668322358,4.25219,2613.6,2613.2,0.80163526]
[1729668322564,4.25219,2613.6,2613.2,3.87816168]
[1729668323061,0.8086,2613.6,2613.2,7.32220168]
[1729668323243,0.8086,2613.6,2613.3,0.90194546]
[1729668323432,3.44339,2613.7,2613.3,4.70358072]
[1729668323631,3.44306,2614.0,2613.4,1.37296078]
[1729668323833,3.44306,2614.0,2613.5,3.44364]
[1729668324056,3.44306,2614.0,2613.5,4.24527526]
[1729668324274,0.803,2614.1,2613.6,3.51996622]
[1729668324460,0.803,2614.1,2613.6,7.76504148]
[1729668324644,4.24588,2614.1,2613.7,0.07651214]
[1729668324839,4.24588,2614.1,2613.6,4.24507526]
[1729668325737,0.803,2614.1,2613.6,7.68851526]
[1729668326057,6.88564,2614.2,2613.7,4.54182025]
[1729668326745,3.44281,2614.2,2613.7,4.54182025]
[1729668327158,3.44281,2614.2,2613.7,5.34345551]
[1729668327347,6.88563,2614.2,2613.7,5.34345551]
[1729668327544,3.44288,2614.1,2613.7,1.82361331]
[1729668327745,3.443,2614.0,2613.8,0.52670533]
[1729668328194,3.44287,2614.1,2613.8,0.52670533]
[1729668329547,3.44274,2614.2,2613.8,0.52670533]
[1729668329766,3.44274,2614.2,2613.9,0.4948]
[1729668330094,3.44287,2614.1,2613.8,0.52670533]
[1729668330931,3.44274,2614.2,2613.8,0.52670533]
[1729668331279,3.44274,2614.2,2613.9,0.52665006]
[1729668331683,4.23217,2614.3,2613.9,0.52665006]
[1729668332225,3.44267,2614.3,2613.9,0.52665006]
[1729668334999,0.0022408,2614.4,2614.2,3.4427]
[1729668335693,0.0022408,2614.4,2614.3,3.4426]
[1729668336152,0.0022408,2614.4,2614.3,3.9374]
[1729668336472,0.0022408,2614.4,2614.3,4.01389202]
[1729668337108,0.0022408,2614.4,2614.3,3.9374]
[1729668337310,0.0022408,2614.4,2614.3,4.87581882]
[1729668337479,0.0022408,2614.4,2614.3,4.95231089]
[1729668337911,0.0022408,2614.4,2614.3,4.87581882]
[1729668338671,0.0022408,2614.4,2614.3,4.95231088]
[1729668338911,0.0022408,2614.4,2614.3,5.42581882]
[1729668341012,0.0022408,2614.4,2614.3,4.87581882]
[1729668341179,0.0022408,2614.4,2614.3,1.43321882]
[1729668341622,0.0022408,2614.4,2614.3,0.93841882]
[1729668341924,0.0022408,2614.4,2614.2,3.99271]
[1729668342116,0.0022408,2614.4,2614.2,0.55]
[1729668342583,0.0022408,2614.4,2614.1,0.4948]
[1729668342783,0.0022408,2614.4,2614.1,0.5712989]
[1729668343135,0.0022408,2614.4,2614.1,0.4948]
[1729668343455,0.0022408,2614.4,2614.2,0.44752488]
[1729668344725,3.4447208,2614.4,2614.2,0.44752488]
[1729668344924,3.4447208,2614.4,2614.0,0.53746876]
[1729668345396,3.4447208,2614.4,2613.8,0.80163526]
[1729668345608,3.4447208,2614.4,2613.7,7.73979526]
[1729668345912,3.44273,2614.2,2613.7,4.29643526]
[1729668346125,3.44273,2614.2,2613.6,1.20245289]
[1729668346126,4.27149,2614.1,2613.6,4.24513526]
[1729668346296,3.443,2614.0,2613.6,3.80163526]
[1729668346635,3.443,2614.0,2613.6,1.23861482]
[1729668347200,6.88608,2614.0,2613.6,1.23861482]
[1729668347285,3.443,2614.0,2613.5,3.93837]
[1729668347492,3.443,2614.0,2613.5,1.29643526]
[1729668347723,3.443,2614.0,2613.6,3.44351]
[1729668348328,4.27149,2614.1,2613.6,3.44351]
[1729668348822,3.44301,2614.0,2613.6,3.44351]
[1729668349033,3.44301,2614.0,2613.5,1.29643526]
[1729668349232,3.44301,2614.0,2613.5,1.89068907]
[1729668349429,4.27146,2614.1,2613.6,3.44352]
[1729668350266,4.27146,2614.1,2613.6,3.44344]
[1729668350485,0.8286,2614.1,2613.6,6.8869]
[1729668350763,3.44308,2614.0,2613.5,1.08905381]
[1729668350958,3.44308,2614.0,2613.6,3.97694491]
[1729668353620,0.8286,2614.1,2613.6,3.97694491]
[1729668354162,4.27155,2614.1,2613.6,3.97694491]
[1729668355211,3.44302,2614.0,2613.6,0.53343491]
[1729668355515,3.44302,2614.0,2613.6,3.44351]
[1729668356206,3.44302,2614.0,2613.5,0.4948]
[1729668356537,3.44302,2614.0,2613.5,3.93839]
[1729668356734,3.44302,2614.0,2613.5,4.74002526]
[1729668357140,3.44302,2614.0,2613.6,3.44352]
[1729668357564,0.8286,2614.1,2613.6,6.9634948]
[1729668357748,0.8286,2614.1,2613.6,7.9097331]
[1729668357936,0.8286,2614.1,2613.6,7.8332183]
[1729668358244,0.8286,2614.1,2613.6,9.52061641]
[1729668359249,0.8286,2614.1,2613.7,5.13078811]
[1729668359839,0.8286,2614.1,2613.7,3.44339]
[1729668361097,4.27154,2614.1,2613.6,6.07709641]
[1729668361246,4.27154,2614.1,2613.6,4.3896983]
[1729668362042,4.27154,2614.1,2613.6,7.8331483]
[1729668362238,4.27154,2614.1,2613.6,6.07708641]
[1729668362438,4.27154,2614.1,2613.6,4.3896883]
[1729668362672,4.27154,2614.1,2613.6,6.07708641]
[1729668363480,4.27154,2614.1,2613.7,3.44338]
[1729668363843,7.71453,2614.1,2613.6,4.3896883]
[1729668364404,4.27154,2614.1,2613.6,4.3896883]
[1729668364866,7.71451,2614.1,2613.6,4.3896883]
[1729668365097,4.27154,2614.1,2613.6,4.3896883]
[1729668365661,3.443,2614.0,2613.6,4.3896883]
[1729668366680,0.8286,2614.1,2613.6,4.3896883]
[1729668366848,0.8286,2614.1,2613.6,9.52052641]
[1729668367050,0.8286,2614.1,2613.7,1.08169617]
[1729668367288,0.8286,2614.1,2613.7,4.52506617]
[1729668367549,4.27153,2614.1,2613.7,1.08169617]
[1729668368535,5.13041811,2614.0,2613.5,4.24522526]
[1729668368798,5.13066811,2613.8,2613.3,7.24545526]
[1729668368996,3.44321,2613.9,2613.4,3.44377]
[1729668369475,3.44328,2613.8,2613.3,5.48903337]
[1729668369801,3.44328,2613.8,2613.3,7.24554526]
[1729668370553,1.68739811,2613.9,2613.3,6.44391]
[1729668370760,0.7911,2613.7,2613.2,5.48903337]
[1729668371090,5.13102811,2613.6,2613.1,4.24569526]
[1729668371272,4.23457,2613.7,2613.2,5.13143811]
[1729668371686,4.23457,2613.7,2613.2,3.44404]
[1729668371893,7.67807,2613.7,2613.2,3.44404]
[1729668373203,9.36546811,2613.7,2613.2,3.44404]
[1729668373414,7.67807,2613.7,2613.2,3.44404]
[1729668373614,7.67804,2613.7,2613.2,3.44404]
[1729668374107,4.23457,2613.7,2613.2,3.44404]
[1729668374312,4.23456,2613.7,2613.2,3.44404]
[1729668374511,4.23456,2613.7,2613.3,0.4948]
[1729668374811,7.67802,2613.7,2613.3,0.4948]
[1729668375111,4.23456,2613.7,2613.3,0.4948]
[1729668375421,0.7753,2614.0,2613.6,3.44351]
[1729668375628,4.21831,2614.0,2613.6,3.44351]
[1729668375918,0.7753,2614.0,2613.6,3.44351]
[1729668376117,5.13053811,2613.9,2613.4,3.44366]
[1729668376799,8.57378811,2613.9,2613.4,3.44376]
[1729668377171,5.13053811,2613.9,2613.4,3.44376]
[1729668377369,3.44314,2613.9,2613.4,3.4437]
[1729668377610,5.13053811,2613.9,2613.4,3.4437]
[1729668377909,4.2183,2614.0,2613.5,3.44358]
[1729668378099,5.90569811,2614.0,2613.5,3.44358]
[1729668379922,5.90569811,2614.0,2613.4,4.50278061]
[1729668380297,5.90569811,2614.0,2613.5,3.44364]
[1729668381216,4.2183,2614.0,2613.5,3.44364]
[1729668381636,5.90569811,2614.0,2613.5,3.44364]
[1729668382117,4.2183,2614.0,2613.5,3.44364]
[1729668382289,4.2183,2614.0,2613.5,4.11213187]
[1729668383385,0.7753,2614.0,2613.5,4.11213187]
[1729668383587,4.21836,2614.0,2613.5,4.11213187]
[1729668383817,3.44314,2613.9,2613.5,4.11213187]
[1729668384341,0.7753,2614.0,2613.6,3.44341]
[1729668384701,3.44266,2614.3,2613.6,3.44341]
[1729668384702,1.22559041,2614.3,2613.9,1.68739811]
[1729668384944,1.22559041,2614.3,2613.9,3.44313]
[1729668385124,1.22559041,2614.3,2613.8,2.18219811]
[1729668385125,3.44274,2614.2,2613.8,2.18219811]
[1729668385303,0.826,2614.3,2613.8,2.18219811]
[1729668385304,0.826,2614.3,2613.9,3.44311]
[1729668385626,4.26863,2614.3,2613.9,3.44311]
[1729668385827,0.0022408,2614.4,2614.2,5.13000811]
[1729668386057,0.0022408,2614.4,2614.3,5.70129275]
[1729668386251,0.0022408,2614.4,2614.3,5.62479811]
[1729668388150,0.0022408,2614.4,2614.3,5.70129114]
[1729668388389,0.0022408,2614.4,2614.3,4.01389303]
[1729668388559,0.0022408,2614.4,2614.3,4.75954333]
[1729668388855,0.0022408,2614.4,2614.3,4.6830503]
[1729668389246,0.0022408,2614.4,2614.3,4.75954338]
[1729668389421,0.0022408,2614.4,2614.3,4.6830503]
[1729668389614,0.0022408,2614.4,2614.3,4.75954331]
[1729668389849,0.0022408,2614.4,2614.3,4.6830503]
[1729668391983,0.0022408,2614.4,2614.3,4.75954081]
[1729668392390,0.0022408,2614.4,2614.3,4.6830503]
[1729668392692,0.0022408,2614.4,2614.3,4.75954082]
[1729668393647,0.0022408,2614.4,2614.3,4.7595408]
[1729668395319,0.0022408,2614.4,2614.3,4.6830503]
[1729668395504,0.0022408,2614.4,2614.3,4.75954088]
[1729668395678,0.0022408,2614.4,2614.3,4.6830503]
[1729668396113,0.0022408,2614.4,2614.3,4.1882503]
[1729668398793,0.0022408,2614.4,2614.3,0.7456503]
[1729668398991,0.0022408,2614.4,2614.2,3.44271]
[1729668399528,0.0022408,2614.4,2614.0,3.4429]
[1729668400491,0.0022408,2614.4,2614.1,3.44284]
[1729668401181,0.0022408,2614.4,2613.9,4.91034478]
[1729668401386,0.7865,2614.3,2613.9,4.41554478]
[1729668402026,0.7682,2613.9,2613.5,3.93837]
[1729668402232,0.7682,2613.9,2613.5,3.44357]
[1729668402546,0.7682,2613.9,2613.6,3.44352]
[1729668403006,4.21133,2613.9,2613.4,3.44365]
[1729668403353,0.7682,2613.9,2613.6,3.4435]
[1729668403651,4.2114,2613.9,2613.5,3.86825408]
[1729668403817,4.2114,2613.9,2613.5,3.05]
[1729668404022,3.44326,2613.8,2613.3,3.44385]
[1729668404235,0.7682,2613.9,2613.4,0.07652064]
[1729668405239,0.7682,2613.9,2613.4,3.52022064]
[1729668406035,0.7682,2613.9,2613.5,3.44365]
[1729668406190,0.7682,2613.9,2613.5,4.14005006]
[1729668406477,0.7682,2613.9,2613.5,4.13998006]
[1729668406622,0.7682,2613.9,2613.6,3.44351]
[1729668406825,0.7554,2614.1,2613.7,3.44328]
[1729668407450,0.7554,2614.1,2613.7,4.25107901]
[1729668407653,0.7554,2614.1,2613.7,4.32759033]
[1729668407810,0.7554,2614.1,2613.8,3.44325]
[1729668408149,3.4447208,2614.4,2613.8,3.44319]
[1729668408150,4.24686,2614.3,2613.8,3.44319]
[1729668408337,0.8042,2614.3,2613.8,3.44319]
[1729668408521,0.8042,2614.3,2614.0,3.44293]
[1729668408725,0.0022408,2614.4,2614.0,3.44293]
[1729668409256,0.0022408,2614.4,2614.1,3.44286]
[1729668409642,0.0022408,2614.4,2614.0,3.44293]
[1729668412610,0.0022408,2614.4,2614.0,3.51942063]
[1729668412813,0.0022408,2614.4,2614.1,3.88754706]
[1729668414047,0.0022408,2614.4,2614.2,3.44271]
[1729668416861,0.0022408,2614.4,2614.1,0.44469706]
[1729668417022,0.0022408,2614.4,2613.9,7.37066999]
[1729668418065,0.0022408,2614.4,2614.0,3.44296]
[1729668419562,3.4447108,2614.4,2613.9,7.37066999]
[1729668420487,0.0022408,2614.4,2614.0,3.44297]
[1729668421484,0.0022408,2614.4,2614.0,3.44292]
[1729668421770,0.0022408,2614.4,2614.0,4.53193449]
[1729668422265,0.0022408,2614.4,2614.0,6.21879664]
[1729668422470,0.0022408,2614.4,2614.1,3.44286]
[1729668422773,0.0022408,2614.4,2614.1,5.12972215]
[1729668423110,0.0022408,2614.4,2614.1,3.44286]
[1729668423281,0.0022408,2614.4,2614.2,0.96616566]
[1729668424378,0.0022408,2614.4,2614.0,6.21879664]
[1729668424379,0.0022408,2614.4,2614.0,4.53193449]
[1729668426272,0.7838,2614.3,2614.0,1.08901449]
[1729668426532,0.7838,2614.3,2613.9,3.0]
[1729668426738,0.7838,2614.3,2613.9,3.44311]
[1729668429790,0.7838,2614.3,2613.9,4.24338077]
[1729668430095,0.7838,2614.3,2613.9,3.44311]
[1729668431701,4.22641,2614.3,2613.8,5.93030292]
[1729668431887,0.7838,2614.3,2613.9,3.44306]
[1729668432673,4.2264,2614.3,2613.9,3.44306]
[1729668433566,0.7838,2614.3,2613.9,3.44306]
[1729668433900,4.22641,2614.3,2613.8,3.40973798]
[1729668434054,3.4447108,2614.4,2613.7,0.80027077]
[1729668434055,0.0022408,2614.4,2613.7,0.80027077]
[1729668434282,0.7688,2613.8,2613.5,0.80027077]
[1729668434465,0.7688,2613.8,2613.4,2.48713292]
[1729668434683,4.21208,2613.8,2613.5,0.59309529]
[1729668435279,4.21208,2613.8,2613.3,5.93095292]
[1729668435471,4.21208,2613.8,2613.4,3.44378]
[1729668435700,4.21208,2613.8,2613.4,5.13064215]
[1729668436079,4.21208,2613.8,2613.3,5.93099292]
[1729668436281,4.21208,2613.8,2613.3,2.48713292]
[1729668436533,4.21208,2613.8,2613.3,5.13076215]
[1729668436834,4.21208,2613.8,2613.3,6.98857083]
[1729668437034,3.44341,2613.7,2613.2,0.80027077]
[1729668437241,4.21208,2613.8,2613.3,1.68686215]
[1729668437627,4.21208,2613.8,2613.3,5.13073215]
[1729668439658,3.44342,2613.7,2613.3,1.68686215]
[1729668439817,3.44342,2613.7,2613.2,5.93117292]
[1729668440024,0.7783,2613.6,2613.3,1.68686215]
[1729668440550,3.44376,2613.5,2613.1,0.80027077]
[1729668440748,0.7783,2613.6,2613.2,3.44405]
[1729668441081,4.22182,2613.6,2613.2,1.68686215]
[1729668441434,7.66543,2613.6,2613.1,2.48713292]
[1729668441570,7.66543,2613.6,2613.1,3.55238603]
[1729668441741,4.22182,2613.6,2613.1,3.55238603]
[1729668442543,0.7783,2613.6,2613.2,1.68686215]
[1729668442630,0.833,2613.8,2613.5,1.68686215]
[1729668442964,0.833,2613.8,2613.6,0.51305521]
[1729668443273,0.833,2613.8,2613.5,5.13042215]
[1729668444258,0.833,2613.8,2613.5,3.44356]
[1729668444461,0.833,2613.8,2613.5,5.13042215]
[1729668444832,0.833,2613.8,2613.5,3.44356]
[1729668445181,0.833,2613.8,2613.4,5.20715223]
[1729668445339,0.833,2613.8,2613.3,3.44391]
[1729668445340,4.2321,2613.7,2613.3,3.44391]
[1729668445539,0.7887,2613.7,2613.3,4.60798822]
[1729668445745,0.7887,2613.7,2613.4,5.13063215]
[1729668445938,0.7887,2613.7,2613.4,3.44377]
[1729668446154,0.7887,2613.7,2613.3,6.29485037]
[1729668446397,0.7887,2613.7,2613.3,9.73863037]
[1729668446686,0.7887,2613.7,2613.4,1.05389011]
[1729668448578,0.7887,2613.7,2613.3,5.13070215]
[1729668448833,0.7887,2613.7,2613.4,5.13063215]
[1729668449094,0.7887,2613.7,2613.4,3.44377]
[1729668449951,0.7887,2613.7,2613.3,1.68686215]
[1729668450368,0.7887,2613.7,2613.3,5.13078215]
[1729668450568,0.7887,2613.7,2613.4,0.51307821]
[1729668452728,0.7887,2613.7,2613.4,2.19994036]
[1729668452878,0.7887,2613.7,2613.4,5.64372036]
[1729668454919,0.7887,2613.7,2613.4,2.19994036]
[1729668455296,0.7887,2613.7,2613.4,3.95685821]
[1729668455500,0.7887,2613.7,2613.5,0.61385204]
[1729668455897,0.7887,2613.7,2613.4,0.51307821]
[1729668456093,0.7887,2613.7,2613.4,2.19994036]
[1729668456436,0.7887,2613.7,2613.4,0.51307821]
[1729668459528,0.7887,2613.7,2613.1,2.36032388]
[1729668459747,0.799,2613.6,2613.1,1.86552388]
[1729668460031,0.799,2613.4,2613.1,1.06525311]
[1729668460649,4.24284,2613.4,2613.1,1.06525311]
[1729668461025,4.24284,2613.4,2613.1,2.75211526]
[1729668461026,0.799,2613.4,2613.1,2.75211526]
[1729668461348,0.799,2613.4,2613.2,0.70732287]
[1729668466951,0.7923,2613.6,2613.3,3.44389]
[1729668469312,0.7923,2613.6,2613.3,5.13075215]
[1729668469622,3.44328,2613.8,2613.3,5.13075215]
[1729668469623,0.8022,2613.8,2613.3,5.13075215]
[1729668469817,4.24546,2613.8,2613.4,0.71331458]
[1729668470040,4.24546,2613.8,2613.4,2.40017673]
[1729668470437,0.8022,2613.8,2613.5,5.13051215]
[1729668470815,0.8022,2613.8,2613.5,3.44365]
[1729668471369,0.8022,2613.8,2613.4,3.2004475]
[1729668471574,0.8022,2613.8,2613.4,4.15707458]
[1729668472222,0.8022,2613.8,2613.5,0.86249244]
[1729668472425,0.8022,2613.8,2613.4,4.15707458]
[1729668472651,4.24546,2613.8,2613.4,0.71331458]
[1729668472819,0.8022,2613.8,2613.4,4.15709458]
[1729668473023,1.40117436,2613.8,2613.4,4.15709458]
[1729668473948,4.84444436,2613.8,2613.4,4.15709458]
[1729668474451,4.84444436,2613.8,2613.4,0.71331458]
[1729668475508,4.84444436,2613.8,2613.4,1.51358535]
[1729668478787,4.84444436,2613.8,2613.5,0.80027077]
[1729668479680,0.8022,2613.8,2613.5,0.80027077]
[1729668479882,0.8022,2613.8,2613.6,0.80027077]
[1729668480037,3.443,2614.0,2613.7,0.80027077]
[1729668480038,0.8033,2614.0,2613.7,0.80027077]
[1729668480375,0.8033,2614.0,2613.8,0.80027077]
[1729668480675,0.8033,2614.2,2613.8,0.80027077]
[1729668480901,4.24605,2614.2,2613.8,3.40975798]
[1729668481040,4.24605,2614.2,2613.9,0.80027077]
[1729668481300,3.44287,2614.1,2613.9,0.80027077]
[1729668481543,0.8033,2614.2,2613.9,0.80027077]
[1729668481788,0.8033,2614.2,2613.9,2.48713292]
[1729668481983,0.8033,2614.2,2613.9,6.99530998]
[1729668482939,0.8033,2614.2,2613.9,7.07181767]
[1729668483111,0.8317408,2614.4,2614.1,1.68686215]
[1729668483307,0.8317408,2614.4,2614.0,2.98193292]
[1729668483525,0.8317408,2614.4,2614.0,3.05843542]
[1729668483832,0.8317408,2614.4,2614.1,1.67696663]
[1729668484342,0.0022408,2614.4,2614.2,1.68686215]
[1729668484649,0.0022408,2614.4,2614.1,6.80658878]
[1729668485633,0.0022408,2614.4,2614.1,5.11972663]
[1729668485835,0.0022408,2614.4,2614.1,6.00631801]
[1729668486003,0.0022408,2614.4,2614.2,0.73013888]
[1729668487453,4.26591,2614.3,2614.1,0.87669586]
[1729668487747,4.26591,2614.3,2613.8,5.93038292]
[1729668488720,4.26591,2614.3,2613.8,9.37363292]
[1729668489211,4.26591,2614.3,2613.9,1.68686215]
[1729668489607,4.26591,2614.3,2613.9,5.12998215]
[1729668489827,4.26591,2614.3,2614.0,0.59302529]
[1729668490517,4.26591,2614.3,2613.8,8.93028292]
[1729668490711,4.26591,2614.3,2613.8,8.13001215]
[1729668491018,4.26591,2614.3,2613.8,8.13010215]
[1729668491407,0.8233,2614.3,2614.0,1.68686215]
[1729668492118,0.0022408,2614.4,2614.2,5.12958215]
[1729668492309,0.0022408,2614.4,2614.3,0.52060857]
[1729668492505,0.0022408,2614.4,2614.1,5.12966215]
[1729668492749,0.0022408,2614.4,2614.0,5.12978215]
[1729668492957,0.0022408,2614.4,2614.0,3.44292]
[1729668493973,3.4447308,2614.4,2614.0,3.44292]
[1729668494837,3.4447308,2614.4,2614.0,5.12978215]
[1729668495025,0.0022408,2614.4,2614.0,9.85951544]
[1729668495388,0.0022408,2614.4,2614.0,6.41658544]
[1729668495838,0.0022408,2614.4,2614.1,5.12970215]
[1729668496068,0.0022408,2614.4,2614.2,1.68686215]
[1729668496272,0.0022408,2614.4,2614.1,8.57244215]
[1729668496449,0.0022408,2614.4,2614.2,0.99357487]
[1729668510594,0.0022408,2614.4,2614.2,4.43630487]
[1729668511080,0.0022408,2614.4,2614.3,3.4426]
[1729668511754,0.0022408,2614.4,2614.2,0.99357487]
[1729668511950,0.0022408,2614.4,2614.2,4.43629487]
[1729668519261,0.0022408,2614.4,2614.1,3.44277]
[1729668520066,0.0022408,2614.4,2614.2,3.44271]
[1729668521341,0.0022408,2614.4,2614.2,3.44266]
[1729668521796,0.0022408,2614.4,2614.3,3.4426]
[1729668521877,0.0022408,2614.4,2614.3,4.04322317]